fUSD/lending_fUSD_20260118
["ID","MTS","AMOUNT","RATE_DAILY","PERIOD"]
[402542638,1768703445154,-500.0,0.00016438,2]
[402542640,1768703445163,-790.31,0.00016438,2]
[402542642,1768703445172,-500.0,0.00016438,2]
[402542643,1768703445182,-500.0,0.00016438,2]
[402542647,1768703445191,-500.0,0.00016438,2]
[402542649,1768703445201,-500.0,0.00016438,2]
[402542650,1768703445210,-290.99779788,0.00016438,2]
[402542652,1768703445220,-500.0,0.00016438,2]
[402542654,1768703445230,-524.55254433,0.00016438,2]
[402542656,1768703445239,-500.0,0.00016438,2]
[402542658,1768703445251,-500.0,0.00016438,2]
[402542660,1768703445260,-500.0,0.00016438,2]
[402542662,1768703445270,-500.0,0.00016438,2]
[402542665,1768703445283,-500.0,0.00016438,2]
[402542667,1768703445292,-500.0,0.00016438,2]
[402542669,1768703445301,-500.0,0.00016438,2]
[402542671,1768703445320,-509.18022972,0.00016438,2]
[402542673,1768703445332,-500.0,0.00016438,2]
[402542675,1768703445342,-500.0,0.00016438,2]
[402542677,1768703445351,-500.0,0.00016438,2]
[402542679,1768703445362,-519.69,0.00016438,2]
[402542681,1768703445371,-500.0,0.00016438,2]
[402542683,1768703445380,-500.0,0.00016438,2]
[402542685,1768703445389,-500.0,0.00016438,2]
[402542687,1768703445398,-500.0,0.00016438,2]
[402542689,1768703445408,-500.0,0.00016438,2]
[402542691,1768703445417,-856.75,0.00016438,2]
[402542693,1768703445427,-529.18,0.00016438,2]
[402542695,1768703445436,-500.0,0.00016438,2]
[402542697,1768703445445,-500.0,0.00016438,2]
[402542699,1768703445454,-500.0,0.00016438,2]
[402542701,1768703445463,-500.0,0.00016438,2]
[402542702,1768703445472,-810.89,0.00016438,2]
[402542704,1768703445481,-500.0,0.00016438,2]
[402542707,1768703445493,-535.75,0.00016438,2]
[402542709,1768703445503,-500.0,0.00016438,2]
[402542711,1768703445512,-625.60979846,0.00016438,2]
[402542713,1768703445521,-500.0,0.00016438,2]
[402542715,1768703445531,-500.0,0.00016438,2]
[402542717,1768703445541,-500.0,0.00016438,2]
[402542719,1768703445550,-524.88619573,0.00016438,2]
[402542721,1768703445559,-500.0,0.00016438,2]
[402542723,1768703445569,-500.0,0.00016438,2]
[402542725,1768703445578,-500.0,0.00016438,2]
[402542727,1768703445587,-500.0,0.00016438,2]
[402542729,1768703445597,-500.0,0.00016438,2]
[402542731,1768703445606,-821.38,0.00016438,2]
[402542733,1768703445615,-500.0,0.00016438,2]
[402542734,1768703445625,-500.0,0.00016438,2]
[402542736,1768703445635,-202.98844784,0.00016438,2]
[402542738,1768703445644,-500.0,0.00016438,2]
[402542740,1768703445654,-522.88,0.00016438,2]
[402542742,1768703445663,-566.70727111,0.00016438,2]
[402542744,1768703445673,-510.97811195,0.00016438,2]
[402542746,1768703445683,-500.0,0.00016438,2]
[402542748,1768703445693,-500.0,0.00016438,2]
[402542750,1768703445702,-500.0,0.00016438,2]
[402542752,1768703445712,-500.0,0.00016438,2]
[402542754,1768703445721,-500.0,0.00016438,2]
[402542756,1768703445731,-500.0,0.00016438,2]
[402542758,1768703445740,-500.0,0.00016438,2]
[402542760,1768703445750,-500.0,0.00016438,2]
[402542762,1768703445759,-500.0,0.00016438,2]
[402542764,1768703445768,-500.0,0.00016438,2]
[402542766,1768703445777,-500.0,0.00016438,2]
[402542768,1768703445787,-500.0,0.00016438,2]
[402542770,1768703445796,-511.35,0.00016438,2]
[402542772,1768703445805,-500.0,0.00016438,2]
[402542774,1768703445814,-500.0,0.00016438,2]
[402542776,1768703445823,-500.0,0.00016438,2]
[402542778,1768703445832,-500.0,0.00016438,2]
[402542780,1768703445841,-500.0,0.00016438,2]
[402542782,1768703445850,-500.0,0.00016438,2]
[402542783,1768703445859,-500.0,0.00016438,2]
[402542785,1768703445868,-632.3179631,0.00016438,2]
[402542788,1768703445887,-500.0,0.00016438,2]
[402542790,1768703445899,-500.0,0.00016438,2]
[402542792,1768703445909,-500.0,0.00016438,2]
[402542794,1768703445919,-500.0,0.00016438,2]
[402542796,1768703445928,-500.0,0.00016438,2]
[402542798,1768703445937,-500.0,0.00016438,2]
[402542800,1768703445946,-500.0,0.00016438,2]
[402542801,1768703445955,-500.0,0.00016438,2]
[402542802,1768703445965,-500.0,0.00016438,2]
[402542804,1768703445975,-500.0,0.00016438,2]
[402542806,1768703445984,-380.84998331,0.00016438,2]
[402542808,1768703445994,-500.0,0.00016438,2]
[402542810,1768703446005,-461.90287138,0.00016438,2]
[402542811,1768703446015,-675.32,0.00016438,2]
[402542812,1768703446024,-500.0,0.00016438,2]
[402542813,1768703446033,-686.87,0.00016438,2]
[402542814,1768703446042,-500.0,0.00016438,2]
[402542815,1768703446052,-500.0,0.00016438,2]
[402542816,1768703446061,-500.0,0.00016438,2]
[402542817,1768703446071,-500.0,0.00016438,2]
[402542818,1768703446081,-515.38,0.00016438,2]
[402542819,1768703446090,-500.0,0.00016438,2]
[402542820,1768703446101,-500.0,0.00016438,2]
[402542821,1768703446111,-742.54,0.00016438,2]
[402542822,1768703446120,-500.0,0.00016438,2]
[402542823,1768703446130,-500.0,0.00016438,2]
[402542824,1768703446140,-500.0,0.00016438,2]
[402542825,1768703446149,-500.0,0.00016438,2]
[402542826,1768703446159,-500.0,0.00016438,2]
[402542827,1768703446168,-500.0,0.00016438,2]
[402542828,1768703446178,-500.0,0.00016438,2]
[402542829,1768703446188,-500.0,0.00016438,2]
[402542830,1768703446198,-500.0,0.00016438,2]
[402542831,1768703446207,-500.0,0.00016438,2]
[402542832,1768703446217,-500.0,0.00016438,2]
[402542833,1768703446226,-500.0,0.00016438,2]
[402542834,1768703446236,-500.0,0.00016438,2]
[402542835,1768703446245,-500.0,0.00016438,2]
[402542836,1768703446255,-784.18,0.00016438,2]
[402542837,1768703446264,-500.0,0.00016438,2]
[402542839,1768703446273,-500.0,0.00016438,2]
[402542841,1768703446283,-500.0,0.00016438,2]
[402542842,1768703446292,-500.0,0.00016438,2]
[402542844,1768703446301,-500.0,0.00016438,2]
[402542846,1768703446310,-500.0,0.00016438,2]
[402542848,1768703446323,-500.0,0.00016438,2]
[402542850,1768703446332,-500.0,0.00016438,2]
[402542852,1768703446342,-500.0,0.00016438,2]
[402542854,1768703446351,-500.0,0.00016438,2]
[402542856,1768703446361,-500.0,0.00016438,2]
[402542858,1768703446370,-500.0,0.00016438,2]
[402542860,1768703446380,-542.64,0.00016438,2]
[402542862,1768703446390,-500.0,0.00016438,2]
[402542863,1768703446400,-649.61,0.00016438,2]
[402542864,1768703446409,-500.0,0.00016438,2]
[402542865,1768703446419,-500.0,0.00016438,2]
[402542866,1768703446430,-500.0,0.00016438,2]
[402542867,1768703446440,-500.0,0.00016438,2]
[402542868,1768703446449,-500.0,0.00016438,2]
[402542869,1768703446459,-500.0,0.00016438,2]
[402542870,1768703446468,-500.0,0.00016438,2]
[402542871,1768703446478,-500.0,0.00016438,2]
[402542872,1768703446488,-500.0,0.00016438,2]
[402542873,1768703446497,-500.0,0.00016438,2]
[402542874,1768703446507,-500.0,0.00016438,2]
[402542875,1768703446516,-500.0,0.00016438,2]
[402542876,1768703446525,-500.0,0.00016438,2]
[402542877,1768703446535,-500.0,0.00016438,2]
[402542878,1768703446544,-500.0,0.00016438,2]
[402542879,1768703446553,-500.0,0.00016438,2]
[402542880,1768703446562,-500.0,0.00016438,2]
[402542881,1768703446571,-643.43,0.00016438,2]
[402542882,1768703446580,-763.32,0.00016438,2]
[402542883,1768703446589,-500.0,0.00016438,2]
[402542884,1768703446598,-500.0,0.00016438,2]
[402542885,1768703446607,-500.0,0.00016438,2]
[402542886,1768703446616,-500.0,0.00016438,2]
[402542887,1768703446625,-500.0,0.00016438,2]
[402542888,1768703446634,-500.0,0.00016438,2]
[402542889,1768703446644,-500.0,0.00016438,2]
[402542890,1768703446653,-1042.01,0.00016438,2]
[402542891,1768703446662,-500.0,0.00016438,2]
[402542892,1768703446671,-500.0,0.00016438,2]
[402542893,1768703446680,-713.94,0.00016438,2]
[402542894,1768703446689,-500.0,0.00016438,2]
[402542895,1768703446699,-500.0,0.00016438,2]
[402542896,1768703446707,-719.48,0.00016438,2]
[402542897,1768703446717,-500.0,0.00016438,2]
[402542898,1768703446728,-598.71,0.00016438,2]
[402542899,1768703446739,-500.0,0.00016438,2]
[402542900,1768703446748,-500.0,0.00016438,2]
[402542901,1768703446758,-500.0,0.00016438,2]
[402542902,1768703446768,-500.0,0.00016438,2]
[402542903,1768703446777,-673.9,0.00016438,2]
[402542904,1768703446786,-500.0,0.00016438,2]
[402542905,1768703446796,-173.33393003,0.00016438,2]
[402542906,1768703446805,-500.0,0.00016438,2]
[402542907,1768703446814,-522.43,0.00016438,2]
[402542908,1768703446823,-500.0,0.00016438,2]
[402542909,1768703446832,-635.88,0.00016438,2]
[402542910,1768703446841,-500.0,0.00016438,2]
[402542911,1768703446851,-500.0,0.00016438,2]
[402542912,1768703446860,-566.38,0.00016438,2]
[402542913,1768703446869,-522.45,0.00016438,2]
[402542914,1768703446879,-500.0,0.00016438,2]
[402542915,1768703446888,-500.0,0.00016438,2]
[402542916,1768703446898,-500.0,0.00016438,2]
[402542917,1768703446907,-500.0,0.00016438,2]
[402542918,1768703446916,-500.0,0.00016438,2]
[402542919,1768703446926,-500.0,0.00016438,2]
[402542920,1768703446936,-378.04708628,0.00016438,2]
[402542921,1768703446946,-500.0,0.00016438,2]
[402542922,1768703446956,-500.0,0.00016438,2]
[402542923,1768703446966,-627.98,0.00016438,2]
[402542924,1768703446976,-500.0,0.00016438,2]
[402542925,1768703446986,-500.0,0.00016438,2]
[402542926,1768703446996,-500.0,0.00016438,2]
[402542927,1768703447006,-500.0,0.00016438,2]
[402542928,1768703447015,-500.0,0.00016438,2]
[402542929,1768703447024,-500.0,0.00016438,2]
[402542930,1768703447034,-530.28,0.00016438,2]
[402542931,1768703447043,-500.0,0.00016438,2]
[402542932,1768703447053,-500.0,0.00016438,2]
[402542933,1768703447062,-500.0,0.00016438,2]
[402542934,1768703447072,-500.0,0.00016438,2]
[402542935,1768703447081,-996.06,0.00016438,2]
[402542936,1768703447092,-500.0,0.00016438,2]
[402542937,1768703447101,-792.51,0.00016438,2]
[402542938,1768703447112,-500.0,0.00016438,2]
[402542939,1768703447121,-934.36,0.00016438,2]
[402542940,1768703447131,-500.0,0.00016438,2]
[402542941,1768703447140,-793.54,0.00016438,2]
[402542942,1768703447150,-500.0,0.00016438,2]
[402542943,1768703447159,-1237.3,0.00016438,2]
[402542944,1768703447168,-500.0,0.00016438,2]
[402542945,1768703447178,-500.0,0.00016438,2]
[402542946,1768703447188,-542.99228611,0.00016438,2]
[402542947,1768703447197,-557.04,0.00016438,2]
[402542948,1768703447207,-500.0,0.00016438,2]
[402542949,1768703447216,-525.91,0.00016438,2]
[402542950,1768703447226,-897.14,0.00016438,2]
[402542951,1768703447235,-500.0,0.00016438,2]
[402542952,1768703447244,-500.0,0.00016438,2]
[402542953,1768703447254,-500.0,0.00016438,2]
[402542954,1768703447263,-203.82700208,0.00016438,2]
[402542955,1768703447273,-500.0,0.00016438,2]
[402542956,1768703447282,-500.0,0.00016438,2]
[402542957,1768703447292,-525.36,0.00016438,2]
[402542958,1768703447301,-500.0,0.00016438,2]
[402542959,1768703447313,-500.0,0.00016438,2]
[402542960,1768703447325,-500.0,0.00016438,2]
[402542961,1768703447335,-500.0,0.00016438,2]
[402542962,1768703447344,-500.0,0.00016438,2]
[402542963,1768703447355,-500.0,0.00016438,2]
[402542964,1768703447365,-736.33,0.00016438,2]
[402542965,1768703447376,-500.0,0.00016438,2]
[402542966,1768703447385,-500.0,0.00016438,2]
[402542967,1768703447394,-587.69,0.00016438,2]
[402542968,1768703447404,-657.41,0.00016438,2]
[402542969,1768703447413,-518.41,0.00016438,2]
[402542970,1768703447422,-514.96,0.00016438,2]
[402542971,1768703447431,-500.0,0.00016438,2]
[402542973,1768703447441,-500.0,0.00016438,2]
[402542974,1768703447450,-500.0,0.00016438,2]
[402542975,1768703447459,-500.0,0.00016438,2]
[402542976,1768703447469,-500.0,0.00016438,2]
[402542977,1768703447478,-500.0,0.00016438,2]
[402542978,1768703447487,-500.0,0.00016438,2]
[402542980,1768703447496,-735.38,0.00016438,2]
[402542981,1768703447505,-500.0,0.00016438,2]
[402542982,1768703447515,-500.0,0.00016438,2]
[402542983,1768703447525,-500.0,0.00016438,2]
[402542984,1768703447534,-500.0,0.00016438,2]
[402542985,1768703447543,-500.0,0.00016438,2]
[402542986,1768703447553,-500.0,0.00016438,2]
[402542987,1768703447562,-500.0,0.00016438,2]
[402542988,1768703447572,-892.32,0.00016438,2]
[402542989,1768703447582,-500.0,0.00016438,2]
[402542990,1768703447591,-500.0,0.00016438,2]
[402542991,1768703447601,-746.7,0.00016438,2]
[402542992,1768703447610,-500.0,0.00016438,2]
[402542993,1768703447619,-500.0,0.00016438,2]
[402542994,1768703447629,-624.45,0.00016438,2]
[402542995,1768703447642,-500.0,0.00016438,2]
[402542996,1768703447651,-553.79,0.00016438,2]
[402542997,1768703447661,-500.0,0.00016438,2]
[402542998,1768703447670,-500.0,0.00016438,2]
[402542999,1768703447679,-500.0,0.00016438,2]
[402543001,1768703447688,-666.55,0.00016438,2]
[402543002,1768703447697,-500.0,0.00016438,2]
[402543003,1768703447707,-562.86,0.00016438,2]
[402543004,1768703447716,-500.0,0.00016438,2]
[402543006,1768703447725,-500.0,0.00016438,2]
[402543007,1768703447735,-370.96428811,0.00016438,2]
[402543008,1768703447744,-500.0,0.00016438,2]
[402543010,1768703447755,-500.0,0.00016438,2]
[402543011,1768703447765,-500.0,0.00016438,2]
[402543012,1768703447774,-500.0,0.00016438,2]
[402543013,1768703447784,-500.0,0.00016438,2]
[402543014,1768703447794,-706.12,0.00016438,2]
[402543015,1768703447803,-500.0,0.00016438,2]
[402543016,1768703447812,-500.0,0.00016438,2]
[402543017,1768703447821,-500.0,0.00016438,2]
[402543018,1768703447831,-500.0,0.00016438,2]
[402543019,1768703447840,-500.0,0.00016438,2]
[402543020,1768703447850,-500.0,0.00016438,2]
[402543021,1768703447859,-500.0,0.00016438,2]
[402543022,1768703447868,-304.77625373,0.00016438,2]
[402543023,1768703447877,-500.0,0.00016438,2]
[402543024,1768703447887,-500.0,0.00016438,2]
[402543025,1768703447896,-500.0,0.00016438,2]
[402543026,1768703447906,-500.0,0.00016438,2]
[402543027,1768703447915,-500.0,0.00016438,2]
[402543028,1768703447924,-158.97048167,0.00016438,2]
[402543029,1768703447933,-612.05,0.00016438,2]
[402543031,1768703447943,-500.0,0.00016438,2]
[402543032,1768703447951,-500.0,0.00016438,2]
[402543033,1768703447960,-500.0,0.00016438,2]
[402543034,1768703447970,-500.0,0.00016438,2]
[402543035,1768703447979,-500.0,0.00016438,2]
[402543036,1768703447988,-811.1,0.00016438,2]
[402543037,1768703447997,-500.0,0.00016438,2]
[402543038,1768703448007,-500.0,0.00016438,2]
[402543039,1768703448017,-500.0,0.00016438,2]
[402543040,1768703448026,-699.62,0.00016438,2]
[402543041,1768703448035,-500.0,0.00016438,2]
[402543042,1768703448044,-500.0,0.00016438,2]
[402543043,1768703448054,-573.68,0.00016438,2]
[402543044,1768703448063,-7354.79,0.00016438,2]
[402543045,1768703448074,-500.0,0.00016438,2]
[402543046,1768703448084,-500.0,0.00016438,2]
[402543047,1768703448094,-500.0,0.00016438,2]
[402543049,1768703448104,-500.0,0.00016438,2]
[402543050,1768703448114,-926.3,0.00016438,2]
[402543051,1768703448123,-500.0,0.00016438,2]
[402543053,1768703448134,-500.0,0.00016438,2]
[402543054,1768703448143,-500.0,0.00016438,2]
[402543055,1768703448152,-500.0,0.00016438,2]
[402543056,1768703448161,-1000.0,0.00016438,2]
[402543057,1768703448170,-500.0,0.00016438,2]
[402543058,1768703448179,-500.0,0.00016438,2]
[402543059,1768703448188,-586.56,0.00016438,2]
[402543060,1768703448197,-500.0,0.00016438,2]
[402543061,1768703448207,-500.0,0.00016438,2]
[402543062,1768703448216,-532.17207364,0.00016438,2]
[402543063,1768703448226,-500.0,0.00016438,2]
[402543064,1768703448236,-500.0,0.00016438,2]
[402543065,1768703448246,-518.66,0.00016438,2]
[402543066,1768703448255,-757.24,0.00016438,2]
[402543067,1768703448265,-500.0,0.00016438,2]
[402543068,1768703448275,-533.37,0.00016438,2]
[402543069,1768703448284,-500.0,0.00016438,2]
[402543070,1768703448293,-600.0,0.00016438,2]
[402543071,1768703448303,-1000.0,0.00016438,2]
[402543072,1768703448313,-1000.0,0.00016441,2]
[402543073,1768703448324,-150.0,0.00016456,2]
[402543074,1768703448334,-150.0,0.00016456,2]
[402543075,1768703448343,-150.0,0.00016456,2]
[402543076,1768703448353,-150.0,0.00016456,2]
[402543077,1768703448363,-2484.85222317,0.00016477,2]
[402543078,1768703448371,-150.0,0.00016486,2]
[402543079,1768703448381,-150.0,0.00016506,2]
[402543080,1768703448392,-150.0,0.00016506,2]
[402543081,1768703448402,-150.0,0.00016506,2]
[402543082,1768703448411,-150.0,0.00016534,2]
[402543083,1768703448420,-567.8712304,0.00016534,2]
[402543084,1768703448430,-150.0,0.00016556,2]
[402543085,1768703448440,-6943.30805061,0.00016586,2]
[402543086,1768703448449,-10001.26079747,0.00016586,2]
[402543087,1768703448459,-150.0,0.00016606,2]
[402543088,1768703448468,-327.55756554,0.00016612,2]
[402543089,1768703448477,-150.0,0.00016632,2]
[402543090,1768703448487,-150.0,0.00016632,2]
[402543091,1768703448496,-150.0,0.00016632,2]
[402543092,1768703448505,-150.0,0.00016632,2]
[402543093,1768703448515,-150.0,0.00016632,2]
[402543094,1768703448524,-150.0,0.00016632,2]
[402543095,1768703448534,-483.42739922,0.00016633,2]
[402543096,1768703448544,-15498.30211224,0.00016634,2]
[402543097,1768703448554,-300.0,0.00016635,2]
[402543098,1768703448564,-166.66,0.00016635,2]
[402543099,1768703448574,-24289.51699046,0.00016636,2]
[402543100,1768703449935,-500.0,0.00016438,2]
[402543101,1768703449947,-342.71920873,0.00016636,2]
[402543102,1768703450999,-500.0,0.00016438,2]
[402543103,1768703451009,-500.0,0.00016438,2]
[402543104,1768703451019,-2000.0,0.00016636,2]
[402543105,1768703451082,-1169.5,0.00016636,2]
[402543114,1768703533965,156.15,7.883e-05,2]
[402543115,1768703534059,156.15,8.672e-05,2]
[402543116,1768703534130,156.15,9.46e-05,2]
[402543117,1768703534332,156.15,0.00010248,2]
[402543118,1768703534472,156.15,0.00011037,2]
[402543119,1768703534675,156.15,0.00011825,2]
[402543120,1768703534873,156.15,0.00012613,2]
[402543121,1768703535084,156.15,0.00013402,2]
[402543129,1768703604945,2000.0,0.00027397,120]
[402543139,1768703622597,193.13,0.00027397,120]
[402543183,1768704135328,-166.66,0.00013342,2]
[402543184,1768704135350,-39.68,0.00013397,2]
[402543185,1768704138053,-173.17614264,0.00013397,2]
[402543186,1768704140350,-163.71742833,0.00013397,2]
[402543187,1768704143260,-234.69632619,0.00013397,2]
[402543188,1768704152011,1570.25,0.00011233,2]
[402543192,1768704201046,463.27031877,0.00027,120]
[402543206,1768704409114,-110.47676584,0.00013397,2]
[402543207,1768704409135,-42.24153214,0.00013482,2]
[402543215,1768704585655,200.0,0.000145,3]
[402543221,1768704631662,-250.0,0.00013503,2]
[402543222,1768704631673,-41.01605699,0.00013523,2]
[402543223,1768704631689,-546.89278113,0.00013523,2]
[402543224,1768704631702,-109.7345614,0.00013523,2]
[402543225,1768704631711,-300.0,0.00013566,2]
[402543226,1768704631722,-1200.0,0.00013566,2]
[402543227,1768704631732,-300.0,0.00013566,2]
[402543228,1768704631742,-193.33956939,0.00013566,2]
[402543229,1768704631753,-832.79455797,0.00013567,2]
[402543230,1768704631765,-1593.65969879,0.00013567,2]
[402543232,1768704631776,-2362.86390706,0.00013567,2]
[402543236,1768704637635,-328.88666808,0.00013567,2]
[402543237,1768704637647,-1592.95186643,0.00013567,2]
[402543238,1768704637747,-67111.77330167,0.00013567,2]
[402543239,1768704637758,-200.0,0.00013584,2]
[402543240,1768704637768,-1264.14,0.00013602,2]
[402543241,1768704637782,-166.66,0.00013623,2]
[402543242,1768704637792,-150.0,0.00013693,2]
[402543243,1768704637802,-500.0,0.00013802,2]
[402543244,1768704637812,-160.06,0.00013858,2]
[402543245,1768704637822,-166.66,0.00013904,2]
[402543246,1768704637832,-554.61852967,0.00014035,2]
[402543247,1768704637843,-697.6433995,0.00014117,2]
[402543248,1768704637853,-166.66,0.00014184,2]
[402543249,1768704637864,-156.15,0.0001419,2]
[402543250,1768704637874,-649.86,0.00014304,2]
[402543251,1768704637884,-283.14,0.00014397,2]
[402543252,1768704637894,-166.66,0.00014465,2]
[402543253,1768704637903,-500.0,0.00014472,2]
[402543254,1768704637912,-500.0,0.00014472,2]
[402543255,1768704637922,-164.84487896,0.00014472,2]
[402543256,1768704637931,-500.0,0.00014472,2]
[402543257,1768704637941,-150.0,0.00014472,2]
[402543258,1768704637955,-150.0,0.00014472,2]
[402543260,1768704637966,-500.0,0.00014472,2]
[402543262,1768704637977,-150.0,0.00014472,2]
[402543264,1768704637988,-150.0,0.00014472,2]
[402543266,1768704637999,-500.0,0.00014472,2]
[402543268,1768704638009,-150.0,0.00014472,2]
[402543270,1768704638019,-500.0,0.00014472,2]
[402543272,1768704638029,-500.0,0.00014472,2]
[402543274,1768704638040,-1874.84,0.00014472,2]
[402543275,1768704638051,-500.0,0.00014472,2]
[402543276,1768704638062,-500.0,0.00014527,2]
[402543277,1768704638073,-500.0,0.00014527,2]
[402543278,1768704638084,-500.0,0.00014527,2]
[402543279,1768704638094,-150.0,0.00014527,2]
[402543280,1768704638105,-150.0,0.00014527,2]
[402543281,1768704638115,-500.0,0.00014527,2]
[402543283,1768704638126,-500.0,0.00014527,2]
[402543285,1768704638137,-150.0,0.00014527,2]
[402543287,1768704638146,-500.0,0.00014527,2]
[402543288,1768704638160,-500.0,0.00014527,2]
[402543289,1768704638170,-500.0,0.00014527,2]
[402543290,1768704638180,-151.0,0.00014572,2]
[402543291,1768704638190,-5740.25822249,0.00014575,2]
[402543292,1768704638204,-1667.95075,0.00014575,2]
[402543294,1768704639966,-0.02707003,0.00014575,2]
[402543295,1768704639978,-585.00775334,0.00014575,2]
[402543296,1768704639989,-1901.96,0.00014575,2]
[402543297,1768704640016,-270.00005,0.00014575,2]
[402543298,1768704640027,-336.3733244,0.00014575,2]
[402543299,1768704640039,-1711.20790717,0.00014575,2]
[402543300,1768704640050,-518.41009963,0.00014575,2]
[402543302,1768704640170,-8049.3103162,0.00014575,2]
[402543303,1768704640181,-286.35749752,0.00014575,2]
[402543304,1768704640192,-33943.13707426,0.00014575,2]
[402543305,1768704640204,-1218.70305801,0.00014575,2]
[402543306,1768704640229,-254.35801595,0.00014575,2]
[402543307,1768704640241,-3864.10583401,0.00014575,2]
[402543308,1768704640254,-601.50114901,0.00014575,2]
[402543311,1768704640284,-939051.33187798,0.00014575,2]
[402543313,1768704640294,-500.0,0.00014582,2]
[402543314,1768704640303,-178.54980024,0.00014582,2]
[402543315,1768704640314,-500.0,0.00014582,2]
[402543316,1768704640324,-150.0,0.00014582,2]
[402543317,1768704640334,-150.0,0.00014582,2]
[402543318,1768704640344,-500.0,0.00014582,2]
[402543319,1768704640353,-500.0,0.00014582,2]
[402543320,1768704640363,-150.0,0.00014582,2]
[402543321,1768704640374,-294.68424811,0.00014582,2]
[402543322,1768704640383,-500.0,0.00014582,2]
[402543323,1768704640393,-344.72585523,0.00014582,2]
[402543324,1768704640403,-500.0,0.00014636,2]
[402543325,1768704640417,-260.8165198,0.00014636,2]
[402543326,1768704640434,-150.0,0.00014636,2]
[402543327,1768704640444,-150.0,0.00014636,2]
[402543328,1768704640454,-557.79295529,0.00014636,2]
[402543329,1768704640464,-500.0,0.00014636,2]
[402543330,1768704640482,-150.0,0.00014636,2]
[402543331,1768704640493,-500.0,0.00014636,2]
[402543332,1768704640502,-500.0,0.00014654,2]
[402543333,1768704640512,-500.0,0.00014654,2]
[402543334,1768704640522,-527.83477022,0.00014654,2]
[402543335,1768704640531,-500.0,0.00014654,2]
[402543336,1768704640540,-5268.17964723,0.00014655,2]
[402543337,1768704640550,-667.0442,0.00014655,2]
[402543338,1768704640559,-525.2305,0.00014655,2]
[402543339,1768704640568,-188.5638,0.00014655,2]
[402543340,1768704640578,-2474.5379,0.00014655,2]
[402543341,1768704640587,-150.0,0.00014668,2]
[402543342,1768704640597,-216.96472332,0.00014669,2]
[402543343,1768704640606,-500.0,0.00014669,2]
[402543344,1768704640615,-500.0,0.00014669,2]
[402543345,1768704640625,-500.0,0.00014669,2]
[402543346,1768704640634,-500.0,0.00014669,2]
[402543347,1768704640644,-618.84492793,0.00014669,2]
[402543348,1768704640654,-500.0,0.00014669,2]
[402543349,1768704640663,-500.0,0.00014669,2]
[402543350,1768704640673,-500.0,0.00014669,2]
[402543351,1768704640685,-500.0,0.00014669,2]
[402543352,1768704640695,-500.0,0.00014669,2]
[402543353,1768704640704,-500.0,0.00014669,2]
[402543354,1768704640713,-500.0,0.00014669,2]
[402543355,1768704640723,-500.0,0.00014669,2]
[402543356,1768704640733,-500.0,0.00014669,2]
[402543357,1768704640743,-500.0,0.00014669,2]